bitfinex/quotes_BTCUSD_20241102
["timestamp","ask_amount","ask_price","bid_price","bid_amount"]
[1730515080930,0.62442126,69900.0,69899.0,0.003644]
[1730515081611,0.62642126,69900.0,69899.0,0.003644]
[1730515081825,0.66914822,69900.0,69899.0,0.003644]
[1730515082038,0.66714822,69900.0,69899.0,0.003644]
[1730515083129,0.66714729,69900.0,69899.0,0.003644]
[1730515086578,0.66717181,69900.0,69899.0,0.003644]
[1730515087721,0.66717771,69900.0,69899.0,0.003644]
[1730515089281,0.62644578,69900.0,69899.0,0.003644]
[1730515089951,0.63844467,69900.0,69899.0,0.003644]
[1730515090164,0.5823208,69900.0,69899.0,0.003644]
[1730515090396,0.59572478,69900.0,69899.0,0.003644]
[1730515091474,0.59372478,69900.0,69899.0,0.003644]
[1730515091870,0.59454678,69900.0,69899.0,0.003644]
[1730515092369,0.65868168,69900.0,69899.0,0.003644]
[1730515093242,0.70333773,69900.0,69899.0,0.003644]
[1730515093680,0.70533773,69900.0,69899.0,0.003644]
[1730515094134,0.70333773,69900.0,69899.0,0.003644]
[1730515094369,0.63920283,69900.0,69899.0,0.003644]
[1730515094596,0.46180964,69900.0,69899.0,0.003644]
[1730515095467,0.52596944,69900.0,69899.0,0.003644]
[1730515095854,0.46180964,69900.0,69899.0,0.003644]
[1730515096096,0.52596944,69900.0,69899.0,0.003644]
[1730515096946,0.52599547,69900.0,69899.0,0.003644]
[1730515097161,0.46180964,69900.0,69899.0,0.003644]
[1730515097607,0.44840566,69900.0,69899.0,0.003644]
[1730515097830,0.46182975,69900.0,69899.0,0.003644]
[1730515098053,0.44840566,69900.0,69899.0,0.003644]
[1730515098333,0.61984454,69900.0,69899.0,0.003644]
[1730515098542,0.70542565,69900.0,69899.0,0.003644]
[1730515098986,0.70542565,69900.0,69898.0,0.001644]
[1730515098987,0.01,69899.0,69898.0,0.001644]
[1730515099217,0.01,69899.0,69883.0,0.09]
[1730515099218,0.20182639,69884.0,69883.0,0.21707513]
[1730515099453,0.35870573,69884.0,69883.0,0.21707513]
[1730515099672,0.11449,69875.0,69874.0,0.30707513]
[1730515099882,0.21526548,69875.0,69874.0,0.30707513]
[1730515100096,0.21526548,69875.0,69874.0,0.09]
[1730515101608,0.21525132,69875.0,69874.0,0.09]
[1730515102034,0.21625132,69875.0,69874.0,0.098]
[1730515102741,0.21725132,69875.0,69874.0,0.107]
[1730515103186,0.22316959,69875.0,69874.0,0.107]
[1730515105380,0.22316042,69875.0,69874.0,0.107]
[1730515109125,0.22315287,69875.0,69874.0,0.107]
[1730515109561,0.22315236,69875.0,69874.0,0.107]
[1730515109793,0.22315236,69875.0,69874.0,0.017]
[1730515111745,0.27104221,69875.0,69874.0,0.017]
[1730515112752,0.70053128,69875.0,69874.0,0.017]
[1730515112977,0.45397421,69875.0,69874.0,0.017]
[1730515113877,0.58197421,69875.0,69874.0,0.017]
[1730515114104,0.66707421,69875.0,69874.0,0.017]
[1730515114307,0.71071002,69875.0,69874.0,0.009]
[1730515114518,0.66607421,69875.0,69874.0,0.015644]
[1730515114771,0.70969755,69875.0,69874.0,0.006644]
[1730515115008,0.70969755,69875.0,69874.0,0.001644]
[1730515115224,0.70969755,69875.0,69874.0,0.006644]
[1730515115442,0.71469755,69875.0,69874.0,0.001644]
[1730515115659,0.71969755,69875.0,69874.0,0.001644]
[1730515116096,0.96969755,69875.0,69874.0,0.001644]
[1730515116976,1.12779336,69875.0,69874.0,0.001644]
[1730515118600,1.08317002,69875.0,69874.0,0.001644]
[1730515118819,1.12774734,69875.0,69874.0,0.001644]
[1730515119684,0.012,69871.0,69870.0,0.001644]
[1730515119898,0.63339845,69871.0,69870.0,0.001644]
[1730515120124,0.65753531,69871.0,69870.0,0.001644]
[1730515121491,0.65853531,69871.0,69870.0,0.001644]
[1730515121907,0.65953531,69871.0,69870.0,0.001644]
[1730515122577,0.65753531,69871.0,69870.0,0.001644]
[1730515122791,0.65953531,69871.0,69870.0,0.001644]
[1730515123648,0.7644352,69871.0,69870.0,0.001644]
[1730515123907,0.49954342,69871.0,69870.0,0.001644]
[1730515124184,0.14073678,69871.0,69870.0,0.077244]
[1730515124405,0.14073678,69871.0,69870.0,0.170744]
[1730515124880,0.13973678,69871.0,69870.0,0.170744]
[1730515125112,0.02624078,69871.0,69870.0,0.170744]
[1730515125329,0.13973678,69871.0,69870.0,0.170744]
[1730515125527,0.13973678,69871.0,69870.0,0.171744]
[1730515125784,0.13873678,69871.0,69870.0,0.170744]
[1730515126216,0.13973678,69871.0,69870.0,0.178744]
[1730515127111,0.12736677,69871.0,69870.0,0.186744]
[1730515127326,0.1407437,69871.0,69870.0,0.186744]
[1730515130433,0.20934991,69871.0,69870.0,0.186744]
[1730515131109,0.14075462,69871.0,69870.0,0.186744]
[1730515134217,0.12736677,69871.0,69870.0,0.186744]
[1730515134483,0.1407546,69871.0,69870.0,0.186744]
[1730515135577,0.0262586,69871.0,69870.0,0.186744]
[1730515137080,0.01287077,69871.0,69870.0,0.186744]
[1730515137509,0.02625817,69871.0,69870.0,0.186744]
[1730515138585,0.14075417,69871.0,69870.0,0.186744]
[1730515139009,0.02625817,69871.0,69870.0,0.186744]
[1730515139453,0.02625817,69871.0,69870.0,0.301242]
[1730515139923,0.002,69871.0,69870.0,0.301242]
[1730515141226,0.01280876,69871.0,69870.0,0.301242]
[1730515141430,0.002,69871.0,69870.0,0.301242]
[1730515141632,0.01280876,69871.0,69870.0,0.301242]
[1730515141860,0.002,69871.0,69870.0,0.301242]
[1730515142075,0.01280876,69871.0,69870.0,0.301242]
[1730515142278,0.002,69871.0,69870.0,0.301242]
[1730515142483,0.01280876,69871.0,69870.0,0.301242]
[1730515142685,0.002,69871.0,69870.0,0.301242]
[1730515142891,0.01280876,69871.0,69870.0,0.301242]
[1730515143128,0.002,69871.0,69870.0,0.301242]
[1730515143347,0.01280876,69871.0,69870.0,0.301242]
[1730515143554,0.002,69871.0,69870.0,0.301242]
[1730515143791,0.01280876,69871.0,69870.0,0.301242]
[1730515146665,0.02618729,69871.0,69870.0,0.301242]
[1730515146888,0.04033712,69871.0,69870.0,0.301242]
[1730515147574,0.02618729,69871.0,69870.0,0.301242]
[1730515147823,0.01280876,69871.0,69870.0,0.301242]
[1730515148268,0.01280876,69871.0,69870.0,0.186744]
[1730515148269,0.02618866,69871.0,69870.0,0.186744]
[1730515148754,0.02618866,69871.0,69870.0,0.111144]
[1730515148755,0.22803605,69871.0,69870.0,0.111144]
[1730515148963,0.23874149,69871.0,69870.0,0.111144]
[1730515149865,0.30849464,69871.0,69870.0,0.111144]
[1730515150092,0.2977892,69871.0,69870.0,0.111144]
[1730515151411,0.2844093,69871.0,69870.0,0.111144]
[1730515151635,0.29780464,69871.0,69870.0,0.111144]
[1730515152059,0.30852152,69871.0,69870.0,0.111144]
[1730515153386,0.30852152,69871.0,69870.0,0.017644]
[1730515154992,0.29512618,69871.0,69870.0,0.017644]
[1730515155220,0.30854595,69871.0,69870.0,0.017644]
[1730515156388,0.30856524,69871.0,69870.0,0.017644]
[1730515157046,0.30856559,69871.0,69870.0,0.017644]
[1730515157717,0.30856495,69871.0,69870.0,0.017644]
[1730515161958,0.29782942,69871.0,69870.0,0.017644]
[1730515162185,0.30856216,69871.0,69870.0,0.017644]
[1730515162641,0.23880901,69871.0,69870.0,0.017644]
[1730515162829,0.23880403,69871.0,69870.0,0.017644]
[1730515164201,0.22807129,69871.0,69870.0,0.017644]
[1730515165963,0.1407199,69871.0,69870.0,0.017644]
[1730515168511,0.18355754,69871.0,69870.0,0.017644]
[1730515169173,0.18355584,69871.0,69870.0,0.017644]
[1730515169632,0.20497467,69871.0,69870.0,0.017644]
[1730515172067,0.1407182,69871.0,69870.0,0.017644]
[1730515172299,0.20512205,69871.0,69870.0,0.017644]
[1730515172733,0.20512484,69871.0,69870.0,0.017644]
[1730515178225,0.2035871,69871.0,69870.0,0.017644]
[1730515178429,0.20359477,69871.0,69870.0,0.017644]
[1730515183170,0.08909877,69871.0,69870.0,0.017644]
[1730515183390,0.0891005,69871.0,69870.0,0.017644]
[1730515183605,0.2035965,69871.0,69870.0,0.017644]
[1730515186860,0.19017032,69871.0,69870.0,0.017644]
[1730515187073,0.20359781,69871.0,69870.0,0.017644]
[1730515187252,0.13919451,69871.0,69870.0,0.017644]
[1730515189040,0.2036077,69871.0,69870.0,0.017644]
[1730515189501,0.0891117,69871.0,69870.0,0.017644]
[1730515190571,0.07568421,69871.0,69870.0,0.017644]
[1730515190826,0.08911173,69871.0,69870.0,0.017644]
[1730515191913,0.02469854,69871.0,69870.0,0.017644]
[1730515192114,0.08911173,69871.0,69870.0,0.017644]
[1730515192741,0.20360773,69871.0,69870.0,0.017644]
[1730515193376,0.13919454,69871.0,69870.0,0.017644]
[1730515193998,0.02469854,69871.0,69870.0,0.017644]
[1730515194210,0.02469922,69871.0,69870.0,0.017644]
[1730515194674,0.18328672,69871.0,69870.0,0.017644]
[1730515195115,0.13919522,69871.0,69870.0,0.017644]
[1730515199181,0.2036375,69871.0,69870.0,0.017644]
[1730515199600,0.13919522,69871.0,69870.0,0.017644]
[1730515200004,0.1391955,69871.0,69870.0,0.017644]
[1730515200872,0.0246995,69871.0,69870.0,0.017644]
[1730515201048,0.01127102,69871.0,69870.0,0.017644]
[1730515201253,0.0246995,69871.0,69870.0,0.017644]
[1730515201775,0.2036374,69871.0,69870.0,0.017644]
[1730515202352,0.1391955,69871.0,69870.0,0.017644]
[1730515202792,0.22654689,69871.0,69870.0,0.017644]
[1730515203026,0.38513336,69871.0,69870.0,0.017644]
[1730515204404,0.29778139,69871.0,69870.0,0.017644]
[1730515204657,0.40517688,69871.0,69870.0,0.017644]
[1730515204866,0.38369709,69871.0,69870.0,0.017644]
[1730515205088,0.26920109,69871.0,69870.0,0.017644]
[1730515205309,0.08913665,69871.0,69870.0,0.017644]
[1730515205532,0.08913601,69871.0,69870.0,0.017644]
[1730515205744,0.02470035,69871.0,69870.0,0.017644]
[1730515208158,0.06765316,69871.0,69870.0,0.132142]
[1730515208579,0.06765219,69871.0,69870.0,0.132142]
[1730515208757,0.06765124,69871.0,69870.0,0.132142]
[1730515209617,0.06765124,69871.0,69870.0,0.210042]
[1730515209823,0.02469695,69871.0,69870.0,0.210042]
[1730515211897,0.01127102,69871.0,69870.0,0.306242]
[1730515212115,0.02469473,69871.0,69870.0,0.306242]
[1730515212535,0.01542371,69871.0,69870.0,0.306242]
[1730515215609,0.01541688,69871.0,69870.0,0.306242]
[1730515219283,0.002,69871.0,69870.0,0.306242]
[1730515219399,0.01541427,69871.0,69870.0,0.306242]
[1730515219605,0.01541209,69871.0,69870.0,0.306242]
[1730515220243,0.01541209,69871.0,69870.0,0.44469725]
[1730515220468,0.002,69871.0,69870.0,0.44469725]
[1730515220882,0.001,69871.0,69870.0,0.43669725]
[1730515221357,0.001,69871.0,69870.0,0.312242]
[1730515221358,0.002,69871.0,69870.0,0.312242]
[1730515221562,0.01540861,69871.0,69870.0,0.312242]
[1730515221783,0.01540861,69871.0,69870.0,0.298242]
[1730515221784,0.01440861,69871.0,69870.0,0.298242]
[1730515221991,0.02343071,69871.0,69870.0,0.290242]
[1730515222191,0.02443071,69871.0,69870.0,0.318242]
[1730515222395,0.02443071,69871.0,69870.0,0.304242]
[1730515222830,0.01440861,69871.0,69870.0,0.318242]
[1730515223066,0.02443071,69871.0,69870.0,0.318242]
[1730515226728,0.06884753,69871.0,69870.0,0.318242]
[1730515226934,0.06884753,69871.0,69870.0,0.240342]
[1730515227142,0.02443071,69871.0,69870.0,0.240342]
[1730515228535,0.02443071,69871.0,69870.0,0.029644]
[1730515229380,0.02443071,69871.0,69870.0,0.144142]
[1730515229998,0.0244334,69871.0,69870.0,0.144142]
[1730515230248,0.0244334,69871.0,69870.0,0.029644]
[1730515230839,0.02443378,69871.0,69870.0,0.029644]
[1730515231584,0.02890157,69871.0,69870.0,0.029644]
[1730515232255,0.02890157,69871.0,69870.0,0.024644]
[1730515233606,0.01548989,69871.0,69870.0,0.024644]
[1730515233835,0.02890429,69871.0,69870.0,0.024644]
[1730515237172,0.0289088,69871.0,69870.0,0.024644]
[1730515237400,0.09667243,69871.0,69870.0,0.024644]
[1730515237624,0.0289088,69871.0,69870.0,0.024644]
[1730515238092,0.0289088,69871.0,69870.0,0.139142]
[1730515238935,0.0289088,69871.0,69870.0,0.024644]
[1730515241655,0.0289088,69871.0,69870.0,0.026288]
[1730515242750,0.03964625,69871.0,69870.0,0.026288]
[1730515244533,0.03964877,69871.0,69870.0,0.026288]
[1730515245420,0.03964877,69871.0,69870.0,0.140786]
[1730515248082,0.03964875,69871.0,69870.0,0.140786]
[1730515250674,0.08758524,69871.0,69870.0,0.026288]
[1730515250892,0.08758524,69871.0,69870.0,0.140786]
[1730515251535,0.07416364,69871.0,69870.0,0.140786]
[1730515251741,0.0768537,69871.0,69870.0,0.140786]
[1730515251950,0.08759556,69871.0,69870.0,0.140786]
[1730515252623,0.03965907,69871.0,69870.0,0.140786]
[1730515253050,0.02516918,69871.0,69870.0,0.140786]
[1730515253536,0.04077126,69871.0,69870.0,0.140786]
[1730515254803,0.06225989,69871.0,69870.0,0.140786]
[1730515260251,0.06226324,69871.0,69870.0,0.140786]
[1730515261531,0.02734729,69871.0,69870.0,0.140786]
[1730515261738,0.01660208,69871.0,69870.0,0.140786]
[1730515261948,0.05152395,69871.0,69870.0,0.140786]
[1730515262155,0.07301433,69871.0,69870.0,0.140786]
[1730515265444,0.06226914,69871.0,69870.0,0.140786]
[1730515265660,0.07301412,69871.0,69870.0,0.140786]
[1730515268969,0.02734727,69871.0,69870.0,0.140786]
[1730515269207,0.07301386,69871.0,69870.0,0.140786]
[1730515269846,0.0515237,69871.0,69870.0,0.140786]
[1730515270056,0.0515237,69871.0,69870.0,0.233286]
[1730515270921,0.04077851,69871.0,69870.0,0.233286]
[1730515271136,0.03003343,69871.0,69870.0,0.233286]
[1730515272496,0.01660208,69871.0,69870.0,0.233286]
[1730515272747,0.03003295,69871.0,69870.0,0.233286]
[1730515276337,0.03003279,69871.0,69870.0,0.233286]
[1730515283196,0.03003226,69871.0,69870.0,0.233286]
[1730515286846,0.01660208,69871.0,69870.0,0.233286]
[1730515287095,0.0300317,69871.0,69870.0,0.233286]
[1730515290573,0.03003144,69871.0,69870.0,0.233286]
[1730515294212,0.01660208,69871.0,69870.0,0.233286]
[1730515294427,0.03003117,69871.0,69870.0,0.233286]
[1730515301315,0.01525109,69871.0,69870.0,0.54549264]
[1730515301516,0.03003688,69871.0,69870.0,0.54549264]
[1730515301741,0.01525109,69871.0,69870.0,0.54549264]
[1730515302241,0.000822,69871.0,69870.0,0.52084864]
[1730515302697,0.001822,69871.0,69870.0,0.54884864]
[1730515302929,0.001822,69871.0,69870.0,0.53484864]
[1730515303160,0.000822,69871.0,69870.0,0.52084864]
[1730515303390,0.001822,69871.0,69870.0,0.54884864]
[1730515306070,0.001822,69871.0,69870.0,0.5532519]
[1730515306910,0.001822,69871.0,69870.0,0.45649725]
[1730515307159,0.001822,69871.0,69870.0,0.144142]
[1730515307415,0.0152339,69871.0,69870.0,0.31950413]
[1730515307628,0.0152339,69871.0,69870.0,0.316642]
[1730515308504,0.01523331,69871.0,69870.0,0.316642]
[1730515312423,0.001822,69871.0,69870.0,0.316642]
[1730515312672,0.01523298,69871.0,69870.0,0.316642]
[1730515313512,0.001822,69871.0,69870.0,0.316642]
[1730515313981,0.015233,69871.0,69870.0,0.316642]
[1730515314565,0.001822,69871.0,69870.0,0.316642]
[1730515314973,0.0152332,69871.0,69870.0,0.316642]
[1730515315148,0.001822,69871.0,69870.0,0.316642]
[1730515315781,0.01523337,69871.0,69870.0,0.316642]
[1730515316106,0.001822,69871.0,69870.0,0.316642]
[1730515316315,0.01523357,69871.0,69870.0,0.316642]
[1730515317315,0.001822,69871.0,69870.0,0.316642]
[1730515318284,0.01523437,69871.0,69870.0,0.316642]
[1730515319345,0.001822,69871.0,69870.0,0.316642]
[1730515319558,0.01523489,69871.0,69870.0,0.316642]
[1730515320460,0.01523531,69871.0,69870.0,0.316642]
[1730515321926,0.01523603,69871.0,69870.0,0.316642]
[1730515324435,0.001822,69871.0,69870.0,0.316642]
[1730515324646,0.01523828,69871.0,69870.0,0.316642]
[1730515329189,0.001822,69871.0,69870.0,0.316642]
[1730515329445,0.01524174,69871.0,69870.0,0.316642]
[1730515336297,0.01525155,69871.0,69870.0,0.316642]
[1730515337513,0.01525155,69871.0,69870.0,0.345282]
[1730515337662,0.01525155,69871.0,69870.0,0.316642]
[1730515343763,0.001822,69871.0,69870.0,0.316642]
[1730515343991,0.01525172,69871.0,69870.0,0.316642]
[1730515350032,0.01525172,69871.0,69870.0,0.235242]
[1730515351496,0.001822,69871.0,69870.0,0.235242]
[1730515351712,0.01525189,69871.0,69870.0,0.235242]
[1730515355505,0.01525226,69871.0,69870.0,0.235242]
[1730515359248,0.001822,69871.0,69870.0,0.235242]
[1730515359469,0.01525231,69871.0,69870.0,0.235242]
[1730515363014,0.01525222,69871.0,69870.0,0.235242]
[1730515365396,0.01525222,69871.0,69870.0,0.029644]
[1730515365608,0.12974822,69871.0,69870.0,0.029644]
[1730515365824,0.14454123,69871.0,69870.0,0.029644]
[1730515366029,0.19752725,69871.0,69870.0,0.029644]
[1730515366655,0.08303125,69871.0,69870.0,0.029644]
[1730515367709,0.14454123,69871.0,69870.0,0.029644]
[1730515369659,0.14354123,69871.0,69870.0,0.001644]
[1730515370180,0.18651659,69871.0,69870.0,0.029644]
[1730515370417,0.18651001,69871.0,69870.0,0.029644]
[1730515370623,0.19993011,69871.0,69870.0,0.029644]
[1730515370825,0.18650647,69871.0,69870.0,0.029644]
[1730515371498,0.14353111,69871.0,69870.0,0.029644]
[1730515372751,0.1542627,69871.0,69870.0,0.029644]
[1730515374117,0.15425381,69871.0,69870.0,0.029644]
[1730515375683,0.24635381,69871.0,69870.0,0.029644]
[1730515377382,0.44959639,69871.0,69870.0,0.029644]
[1730515377593,0.46300189,69871.0,69870.0,0.029644]
[1730515377829,0.72338051,69871.0,69870.0,0.029644]
[1730515378263,0.76807021,69871.0,69870.0,0.029644]
[1730515378494,0.72338051,69871.0,69870.0,0.029644]
[1730515378935,0.72838051,69871.0,69870.0,0.015644]
[1730515379161,0.72836772,69871.0,69870.0,0.015644]
[1730515379381,0.72836772,69871.0,69870.0,0.029644]
[1730515379631,0.72836772,69871.0,69870.0,0.001644]
[1730515380082,0.72836772,69871.0,69870.0,0.020644]
[1730515380523,0.72836772,69871.0,69870.0,0.007644]
[1730515380746,0.72836772,69871.0,69870.0,0.001644]
[1730515380981,0.5699891,69871.0,69870.0,0.007644]
[1730515381200,0.72624616,69871.0,69870.0,0.007644]
[1730515381415,0.72623969,69871.0,69870.0,0.001644]
[1730515381880,0.73123969,69871.0,69870.0,0.001644]
[1730515382085,0.72623969,69871.0,69870.0,0.007644]
[1730515382287,0.73123969,69871.0,69870.0,0.001644]
[1730515382703,0.73123969,69871.0,69870.0,0.005644]
[1730515382908,0.73123969,69871.0,69870.0,0.009644]
[1730515383136,0.75423969,69871.0,69870.0,0.009644]
[1730515383359,0.74923969,69871.0,69870.0,0.005644]
[1730515383570,0.75423969,69871.0,69870.0,0.001644]
[1730515383781,0.74923969,69871.0,69870.0,0.006644]
[1730515384020,0.75423969,69871.0,69870.0,0.006644]
[1730515384257,0.75423969,69871.0,69870.0,0.004644]
[1730515384467,0.75623969,69871.0,69870.0,0.004644]
[1730515384918,0.77764684,69871.0,69870.0,0.004644]
[1730515385390,0.77764684,69871.0,69870.0,0.001644]
[1730515385598,0.77064684,69871.0,69870.0,0.002644]
[1730515385816,0.77764684,69871.0,69870.0,0.002644]
[1730515386046,0.77764684,69871.0,69870.0,0.001644]
[1730515386258,0.77864684,69871.0,69870.0,0.001644]
[1730515386470,0.77664684,69871.0,69870.0,0.001644]
[1730515386679,0.77064684,69871.0,69870.0,0.001644]
[1730515386890,0.73784458,69871.0,69870.0,0.001644]
[1730515387115,0.74282267,69871.0,69870.0,0.001644]
[1730515387347,0.77259557,69871.0,69870.0,0.001644]
[1730515387574,0.77759557,69871.0,69870.0,0.001644]
[1730515387780,0.77259557,69871.0,69870.0,0.001644]
[1730515387992,0.77759557,69871.0,69870.0,0.001644]
[1730515388229,0.77959557,69871.0,69870.0,0.001644]
[1730515388701,0.78159557,69871.0,69870.0,0.001644]
[1730515388917,0.77759557,69871.0,69870.0,0.001644]
[1730515389422,0.77959557,69871.0,69870.0,0.001644]
[1730515389623,0.77923708,69871.0,69870.0,0.001644]
[1730515390292,0.77923228,69871.0,69870.0,0.001644]
[1730515392593,1.02923228,69871.0,69870.0,0.001644]
[1730515397397,0.98376483,69871.0,69870.0,0.001644]
[1730515397604,1.01854591,69871.0,69870.0,0.001644]
[1730515397783,1.02924778,69871.0,69870.0,0.001644]
[1730515398660,0.87134921,69871.0,69870.0,0.001644]
[1730515398898,1.02916987,69871.0,69870.0,0.001644]
[1730515399438,1.07373081,69871.0,69870.0,0.001644]
[1730515400074,1.02916987,69871.0,69870.0,0.001644]
[1730515400282,1.07373089,69871.0,69870.0,0.001644]
[1730515400869,1.03894981,69871.0,69870.0,0.001644]
[1730515401073,1.07375547,69871.0,69870.0,0.001644]
[1730515402516,0.249498,69870.0,69869.0,0.00136806]
[1730515402727,0.63584246,69870.0,69869.0,0.00136806]
[1730515402905,0.65132586,69870.0,69869.0,0.00136806]
[1730515403346,0.65132204,69870.0,69869.0,0.00136806]
[1730515403910,0.65332204,69870.0,69869.0,0.00136806]
[1730515404399,0.64261439,69870.0,69869.0,0.00136806]
[1730515404587,0.65333232,69870.0,69869.0,0.00136806]
[1730515404740,0.76021392,69870.0,69869.0,0.00136806]
[1730515404934,0.76024979,69870.0,69869.0,0.00136806]
[1730515405137,0.65336819,69870.0,69869.0,0.00136806]
[1730515407766,0.65341155,69870.0,69869.0,0.00136806]
[1730515408786,0.65141155,69870.0,69869.0,0.00136806]
[1730515409005,0.73533464,69870.0,69869.0,0.00136806]
[1730515409226,0.66839616,69870.0,69869.0,0.00136806]
[1730515409464,0.66841248,69870.0,69869.0,0.00136806]
[1730515410445,0.62849179,69870.0,69869.0,0.00136806]
[1730515411990,0.73548877,69870.0,69869.0,0.00136806]
[1730515412350,0.62849207,69870.0,69869.0,0.00136806]
[1730515415424,0.63049207,69870.0,69869.0,0.00136806]
[1730515415634,0.61975468,69870.0,69869.0,0.00136806]
[1730515415865,0.63049594,69870.0,69869.0,0.00136806]
[1730515416276,0.64123742,69870.0,69869.0,0.00136806]
[1730515416503,0.76953015,69870.0,69869.0,0.00136806]
[1730515416833,0.63049616,69870.0,69869.0,0.00136806]
[1730515417446,0.63049616,69870.0,69860.0,0.001644]
[1730515417447,0.114513,69861.0,69860.0,0.001644]
[1730515417653,0.38255558,69861.0,69860.0,0.001644]
[1730515417783,0.38971266,69861.0,69860.0,0.001644]
[1730515417976,0.44279171,69861.0,69860.0,0.001644]
[1730515418230,0.39804098,69861.0,69860.0,0.001644]
[1730515418430,0.68678054,69861.0,69860.0,0.001644]
[1730515418635,0.68678054,69861.0,69860.0,0.005644]
[1730515418835,0.60105399,69861.0,69860.0,0.005644]
[1730515419035,0.60105399,69861.0,69860.0,0.010644]
[1730515419211,0.44279449,69861.0,69860.0,0.010644]
[1730515419415,0.60106217,69861.0,69860.0,0.010644]
[1730515420256,0.70824874,69861.0,69860.0,0.010644]
[1730515420659,0.46895727,69861.0,69860.0,0.010644]
[1730515421417,0.57614384,69861.0,69860.0,0.010644]
[1730515421633,0.57614384,69861.0,69860.0,0.106744]
[1730515421634,0.46895727,69861.0,69860.0,0.106744]
[1730515422445,0.55466888,69861.0,69860.0,0.106744]
[1730515423209,0.54124703,69861.0,69860.0,0.106744]
[1730515423439,0.44748473,69861.0,69860.0,0.106744]
[1730515427329,0.44748199,69861.0,69860.0,0.106744]
[1730515427740,0.44748133,69861.0,69860.0,0.106744]
[1730515430696,0.44778201,69861.0,69860.0,0.106744]
[1730515431124,0.4370437,69861.0,69860.0,0.106744]
[1730515431339,0.44778293,69861.0,69860.0,0.106744]
[1730515431559,0.42011581,69861.0,69860.0,0.106744]
[1730515431770,0.42011581,69861.0,69860.0,0.184644]
[1730515431982,0.31273003,69861.0,69860.0,0.184644]
[1730515432429,0.19820253,69861.0,69860.0,0.184644]
[1730515432636,0.09601742,69861.0,69860.0,0.299158]
[1730515432870,0.05307028,69861.0,69860.0,0.299158]
[1730515433528,0.07453747,69861.0,69860.0,0.299158]
[1730515434399,0.06379824,69861.0,69860.0,0.299158]
[1730515434897,0.04831284,69861.0,69860.0,0.299158]
[1730515435109,0.02684565,69861.0,69860.0,0.299158]
[1730515435522,0.02684565,69861.0,69860.0,0.294158]
[1730515435734,0.02684565,69861.0,69860.0,0.303158]
[1730515436170,0.02684565,69861.0,69860.0,0.299158]
[1730515436369,0.02684565,69861.0,69860.0,0.307158]
[1730515438981,0.02682438,69861.0,69860.0,0.307158]
[1730515440115,0.02682438,69861.0,69860.0,0.192644]
[1730515440332,0.0375442,69861.0,69860.0,0.192644]
[1730515440555,0.16742277,69861.0,69860.0,0.192644]
[1730515440771,0.01340034,69861.0,69860.0,0.192644]
[1730515440998,0.09253083,69861.0,69860.0,0.192644]
[1730515441244,0.08181129,69861.0,69860.0,0.192644]
[1730515442934,0.06573056,69861.0,69860.0,0.192644]
[1730515443362,0.05501153,69861.0,69860.0,0.192644]
[1730515443767,0.16952453,69861.0,69860.0,0.192644]
[1730515445029,0.18292248,69861.0,69860.0,0.192644]
[1730515445954,0.1963199,69861.0,69860.0,0.192644]
[1730515446190,0.20703784,69861.0,69860.0,0.192644]
[1730515447892,0.1963199,69861.0,69860.0,0.192644]
[1730515448043,0.2070381,69861.0,69860.0,0.192644]
[1730515448888,0.20703893,69861.0,69860.0,0.192644]
[1730515451385,0.16739505,69861.0,69860.0,0.192644]
[1730515452467,0.14328211,69861.0,69860.0,0.192644]
[1730515452671,0.16740473,69861.0,69860.0,0.192644]
[1730515455935,0.15668357,69861.0,69860.0,0.192644]
[1730515456142,0.16740779,69861.0,69860.0,0.192644]
[1730515456542,0.16741328,69861.0,69860.0,0.192644]
[1730515456965,0.22995841,69861.0,69860.0,0.192644]
[1730515459380,0.22995841,69861.0,69860.0,0.114744]
[1730515459790,0.20315,69861.0,69860.0,0.114744]
[1730515459991,0.22998568,69861.0,69860.0,0.114744]
[1730515463491,0.23000587,69861.0,69860.0,0.114744]
[1730515466809,0.23002077,69861.0,69860.0,0.114744]
[1730515467236,0.23002091,69861.0,69860.0,0.114744]
[1730515469374,0.23002494,69861.0,69860.0,0.114744]
[1730515470395,0.21660254,69861.0,69860.0,0.114744]
[1730515470627,0.23003639,69861.0,69860.0,0.114744]
[1730515472821,0.16749126,69861.0,69860.0,0.114744]
[1730515474284,0.16749126,69861.0,69860.0,0.197844]
[1730515477464,0.210426,69861.0,69860.0,0.197844]
[1730515477893,0.21042621,69861.0,69860.0,0.197844]
[1730515479617,0.16749147,69861.0,69860.0,0.197844]
[1730515480048,0.17823821,69861.0,69860.0,0.197844]
[1730515480179,0.16749232,69861.0,69860.0,0.197844]
[1730515480731,0.23004535,69861.0,69860.0,0.197844]
[1730515484791,0.21661305,69861.0,69860.0,0.197844]
[1730515484987,0.23004658,69861.0,69860.0,0.197844]
[1730515488751,0.21930089,69861.0,69860.0,0.197844]
[1730515488957,0.23004811,69861.0,69860.0,0.197844]
[1730515492059,0.23004902,69861.0,69860.0,0.197844]
[1730515498078,0.31599669,69861.0,69860.0,0.197844]
[1730515498293,0.47463057,69861.0,69860.0,0.197844]
[1730515498524,0.3886829,69861.0,69860.0,0.197844]
[1730515498925,0.23004902,69861.0,69860.0,0.197844]
[1730515499307,0.29450484,69861.0,69860.0,0.197844]
[1730515499555,0.47462179,69861.0,69860.0,0.197844]
[1730515499687,0.47461087,69861.0,69860.0,0.197844]
[1730515500306,0.3886632,69861.0,69860.0,0.197844]
[1730515500521,0.2300381,69861.0,69860.0,0.197844]
[1730515500733,0.32610861,69861.0,69860.0,0.197844]
[1730515501605,0.16748507,69861.0,69860.0,0.197844]
[1730515501808,0.31536324,69861.0,69860.0,0.197844]
[1730515502039,0.32610529,69861.0,69860.0,0.197844]
[1730515502237,0.16748474,69861.0,69860.0,0.197844]
[1730515502653,0.16538992,69861.0,69860.0,0.197844]
[1730515503081,0.24707094,69861.0,69860.0,0.197844]
[1730515504606,0.23364296,69861.0,69860.0,0.197844]
[1730515504824,0.24707007,69861.0,69860.0,0.197844]
[1730515505486,0.23363601,69861.0,69860.0,0.197844]
[1730515505658,0.24706305,69861.0,69860.0,0.197844]
[1730515509085,0.2202089,69861.0,69860.0,0.197844]
[1730515509289,0.23632091,69861.0,69860.0,0.197844]